bitfinex/quotes_BTCUSD_20251102
["timestamp","ask_amount","ask_price","bid_price","bid_amount"]
[1762087145416,0.25242528,111020.0,111010.0,0.02668]
[1762087145830,0.52016394,111010.0,111000.0,0.0270767]
[1762087146015,0.59244311,111010.0,111000.0,0.0270767]
[1762087147921,0.59844311,111010.0,111000.0,0.0270767]
[1762087148375,0.61144311,111010.0,111000.0,0.0300767]
[1762087148744,0.59844311,111010.0,111000.0,0.0270767]
[1762087149158,0.61844311,111010.0,111000.0,0.0290767]
[1762087149539,0.61844311,111010.0,111000.0,0.002]
[1762087151084,0.61844311,111010.0,111000.0,0.02907865]
[1762087151665,0.61844311,111010.0,111000.0,0.002]
[1762087154668,0.60166989,111010.0,111000.0,0.002]
[1762087154868,0.61845867,111010.0,111000.0,0.002]
[1762087158629,0.70914091,111010.0,111000.0,0.002]
[1762087158838,0.73329186,111010.0,111000.0,0.002]
[1762087159771,0.78093864,111010.0,111000.0,0.002]
[1762087159959,0.7809622,111010.0,111000.0,0.002]
[1762087160468,0.21636246,111000.0,110990.0,0.00066648]
[1762087160671,0.40816204,111000.0,110990.0,0.00066648]
[1762087160875,0.42748571,111000.0,110990.0,0.00066648]
[1762087161778,0.43348571,111000.0,110990.0,0.00066648]
[1762087162589,0.40121451,111000.0,110990.0,0.00066648]
[1762087163138,0.41321451,111000.0,110990.0,0.00066648]
[1762087163938,0.39521451,111000.0,110990.0,0.00066648]
[1762087164307,0.41721451,111000.0,110990.0,0.00066648]
[1762087164718,0.3123955,111000.0,110990.0,0.00066648]
[1762087165099,0.3273955,111000.0,110990.0,0.00066648]
[1762087169864,0.29870187,111000.0,110990.0,0.00066648]
[1762087172830,0.29870187,111000.0,110990.0,0.00026663]
[1762087176832,0.23831619,111000.0,110990.0,0.23293304]
[1762087176970,0.27449847,111000.0,110990.0,0.23293304]
[1762087177356,0.23831619,111000.0,110990.0,0.23293304]
[1762087177799,0.27449847,111000.0,110990.0,0.23293304]
[1762087178221,0.27449847,111000.0,110990.0,0.20836304]
[1762087180494,0.27449847,111000.0,110990.0,0.02816663]
[1762087180702,0.3273955,111000.0,110990.0,0.00026663]
[1762087181303,0.29870187,111000.0,110990.0,0.00026663]
[1762087181707,0.29870187,111000.0,110990.0,2.36e-06]
[1762087181964,0.30388177,111000.0,110990.0,2.36e-06]
[1762087183945,0.29870187,111000.0,110990.0,2.36e-06]
[1762087185265,0.33096573,111000.0,110990.0,2.36e-06]
[1762087185459,0.29869453,111000.0,110990.0,2.36e-06]
[1762087185725,0.303885,111000.0,110990.0,2.36e-06]
[1762087186125,0.3361562,111000.0,110990.0,2.36e-06]
[1762087186328,0.33096573,111000.0,110990.0,2.36e-06]
[1762087187146,0.42078474,111000.0,110990.0,2.36e-06]
[1762087187923,0.42084809,111000.0,110990.0,2.36e-06]
[1762087189315,0.39663119,111000.0,110990.0,2.36e-06]
[1762087190294,0.42532482,111000.0,110990.0,2.36e-06]
[1762087190498,0.47361367,111000.0,110990.0,2.36e-06]
[1762087191247,0.31201056,111000.0,110990.0,2.36e-06]
[1762087192461,0.33625198,111000.0,110990.0,2.36e-06]
[1762087195029,0.33625198,111000.0,110990.0,0.05247236]
[1762087195155,0.30398078,111000.0,110990.0,0.05247236]
[1762087195378,0.30398078,111000.0,110990.0,0.02790236]
[1762087195991,0.30398078,111000.0,110990.0,0.01231236]
[1762087196196,0.30398078,111000.0,110990.0,2.36e-06]
[1762087196570,0.39379979,111000.0,110990.0,2.36e-06]
[1762087197237,0.30398078,111000.0,110990.0,2.36e-06]
[1762087198746,0.30398078,111000.0,110990.0,0.01555236]
[1762087199358,0.30398078,111000.0,110990.0,0.00950726]
[1762087199537,0.55637869,110990.0,110980.0,0.05490126]
[1762087199738,0.59255721,110990.0,110980.0,0.03692831]
[1762087199919,0.59255721,110990.0,110980.0,0.05247831]
[1762087200546,0.59255721,110990.0,110980.0,0.08062927]
[1762087200977,0.61455721,110990.0,110980.0,0.08162927]
[1762087201221,0.61455721,110990.0,110980.0,0.00104831]
[1762087201647,0.63879863,110990.0,110980.0,0.00104831]
[1762087202491,0.64399732,110990.0,110980.0,0.00104831]
[1762087202709,0.63879863,110990.0,110980.0,0.00104831]
[1762087203351,0.67106983,110990.0,110980.0,0.00104831]
[1762087203792,0.76534105,110990.0,110980.0,0.00104831]
[1762087204022,0.77456809,110990.0,110980.0,0.00104831]
[1762087204230,0.79058574,110990.0,110980.0,0.00104831]
[1762087204452,0.8356,110990.0,110980.0,0.00104831]
[1762087205357,0.80329574,110990.0,110980.0,0.00126674]
[1762087205568,0.82915803,110990.0,110980.0,0.00126674]
[1762087206414,0.80329574,110990.0,110980.0,0.00126674]
[1762087206628,0.81957087,110990.0,110980.0,0.00026674]
[1762087206849,0.83957087,110990.0,110980.0,0.00026674]
[1762087207277,0.85057087,110990.0,110980.0,0.00026674]
[1762087207721,0.73205823,110990.0,110980.0,0.00026674]
[1762087207943,0.70605823,110990.0,110980.0,0.00026674]
[1762087208169,0.65776938,110990.0,110980.0,0.00026674]
[1762087208394,0.64969698,110990.0,110980.0,0.00026674]
[1762087208618,0.62598698,110990.0,110980.0,0.02711674]
[1762087208862,0.63117721,110990.0,110980.0,0.02711674]
[1762087209097,0.63817721,110990.0,110980.0,0.20732939]
[1762087209312,0.62678425,110990.0,110980.0,0.20732939]
[1762087209530,0.59060197,110990.0,110980.0,0.23022939]
[1762087209751,0.61978425,110990.0,110980.0,0.05001674]
[1762087209962,0.61978425,110990.0,110980.0,0.23022939]
[1762087210171,0.60578425,110990.0,110980.0,0.23022939]
[1762087210388,0.61678425,110990.0,110980.0,0.23022939]
[1762087211669,0.43658784,110990.0,110980.0,0.23022939]
[1762087211879,0.61678425,110990.0,110980.0,0.23022939]
[1762087212508,0.43658784,110990.0,110980.0,0.23022939]
[1762087213157,0.43658784,110990.0,110980.0,0.20732939]
[1762087213368,0.61678425,110990.0,110980.0,0.19177939]
[1762087213574,0.61678425,110990.0,110980.0,0.18047939]
[1762087214425,0.61678425,110990.0,110980.0,0.19850065]
[1762087214631,0.61678425,110990.0,110980.0,0.21405065]
[1762087214838,0.61678425,110990.0,110980.0,0.19602939]
[1762087215043,0.61678425,110990.0,110980.0,0.23711511]
[1762087215254,0.61678425,110990.0,110980.0,0.24841511]
[1762087215455,0.61678425,110990.0,110980.0,0.06820246]
[1762087215901,0.61678425,110990.0,110980.0,0.00026674]
[1762087217759,0.64098698,110990.0,110980.0,0.00026674]
[1762087218245,0.61678425,110990.0,110980.0,0.00026674]
[1762087219132,0.60578425,110990.0,110980.0,0.00026674]
[1762087219393,0.60178425,110990.0,110980.0,0.00026674]
[1762087219612,0.71162848,110990.0,110980.0,0.00026674]
[1762087221023,0.62778425,110990.0,110980.0,0.01581674]
[1762087222278,0.62778425,110990.0,110980.0,0.00026674]
[1762087228795,0.62778425,110990.0,110980.0,0.01678674]
[1762087229459,0.62778425,110990.0,110980.0,0.00026674]
[1762087229892,0.65717879,110990.0,110980.0,0.00026674]
[1762087230128,0.65198698,110990.0,110980.0,0.00026674]
[1762087230388,0.73843121,110990.0,110980.0,0.00026674]
[1762087233749,0.65717966,110990.0,110980.0,0.00026674]
[1762087234079,0.65198698,110990.0,110980.0,0.00026674]
[1762087234479,0.65718019,110990.0,110980.0,0.00026674]
[1762087241315,0.65718019,110990.0,110980.0,0.070168]
[1762087241643,0.65718019,110990.0,110980.0,0.02892674]
[1762087242029,0.7469992,110990.0,110980.0,0.02892674]
[1762087242249,0.7469992,110990.0,110980.0,0.01240674]
[1762087242463,0.7469992,110990.0,110980.0,0.00026674]
[1762087243513,0.7469992,110990.0,110980.0,0.01678674]
[1762087244101,0.7469992,110990.0,110980.0,0.00026674]
[1762087247017,0.65718019,110990.0,110980.0,0.02892674]
[1762087247230,0.65718019,110990.0,110980.0,0.070168]
[1762087247434,0.65718019,110990.0,110980.0,0.05214674]
[1762087247851,0.65718019,110990.0,110980.0,0.02892674]
[1762087248060,0.65718019,110990.0,110980.0,0.00026674]
[1762087248279,0.65718019,110990.0,110980.0,0.23235939]
[1762087248519,0.65718019,110990.0,110980.0,0.27487221]
[1762087248955,0.65718019,110990.0,110980.0,0.23235939]
[1762087249851,0.65722253,110990.0,110980.0,0.23235939]
[1762087250519,0.65202217,110990.0,110980.0,0.23235939]
[1762087251530,0.64502217,110990.0,110980.0,0.23235939]
[1762087251737,0.65222182,110990.0,110980.0,0.23235939]
[1762087251882,0.63322182,110990.0,110980.0,0.23235939]
[1762087252387,0.45882576,110990.0,110980.0,0.23435939]
[1762087252619,0.43462303,110990.0,110980.0,0.23435939]
[1762087253286,0.61481944,110990.0,110980.0,0.23435939]
[1762087255335,0.43462303,110990.0,110980.0,0.23435939]
[1762087255546,0.04921371,110990.0,110980.0,0.27707221]
[1762087255774,0.02984019,110990.0,110980.0,0.27707221]
[1762087256447,0.013,110990.0,110980.0,0.27707221]
[1762087257681,0.013,110990.0,110980.0,0.30414937]
[1762087270220,0.013,110990.0,110980.0,0.38990105]
[1762087271307,0.002,110990.0,110980.0,0.38790105]
[1762087271514,0.007,110990.0,110980.0,0.38890105]
[1762087271946,0.005,110990.0,110980.0,0.38890105]
[1762087272334,0.006,110990.0,110980.0,0.39190105]
[1762087280365,0.006,110990.0,110980.0,0.40190104]
[1762087281188,0.006,110990.0,110980.0,0.39190105]
[1762087281422,0.006,110990.0,110980.0,0.40190104]
[1762087285818,0.006,110990.0,110980.0,0.55110104]
[1762087287737,1e-08,110990.0,110980.0,0.55110104]
[1762087287999,1e-08,110990.0,110980.0,3.29117703]
[1762087288442,1e-08,110990.0,110980.0,3.14197703]
[1762087289323,1e-08,110990.0,110980.0,3.14097703]
[1762087289530,1e-08,110990.0,110980.0,3.14597703]
[1762087290387,1e-08,110990.0,110980.0,3.2112867]
[1762087290787,1e-08,110990.0,110980.0,3.2172867]
[1762087291644,1e-08,110990.0,110980.0,3.3664867]
[1762087297352,1e-08,110990.0,110980.0,3.43095284]
[1762087297791,1e-08,110990.0,110980.0,3.3664867]
[1762087298212,1e-08,110990.0,110980.0,3.43095284]
[1762087298414,1e-08,110990.0,110980.0,3.3664867]
[1762087300097,1e-08,110990.0,110980.0,3.43095284]
[1762087300997,1e-08,110990.0,110980.0,3.56215512]
[1762087304732,1e-08,110990.0,110980.0,3.52597284]
[1762087304946,1e-08,110990.0,110980.0,3.4615067]
[1762087305378,1e-08,110990.0,110980.0,3.3664867]
[1762087305798,1e-08,110990.0,110980.0,3.35648671]
[1762087306007,1e-08,110990.0,110980.0,3.3664867]
[1762087307301,1e-08,110990.0,110980.0,3.43095284]
[1762087311241,1e-08,110990.0,110980.0,3.43073284]
[1762087311661,1e-08,110990.0,110980.0,3.52575284]
[1762087314424,1e-08,110990.0,110980.0,3.4612867]
[1762087315081,1e-08,110990.0,110980.0,3.52613488]
[1762087315306,1e-08,110990.0,110980.0,3.4612867]
[1762087318372,1e-08,110990.0,110980.0,3.54126117]
[1762087320622,1e-08,110990.0,110980.0,3.57744345]
[1762087322004,0.0018208,111040.0,111030.0,0.18013149]
[1762087322246,0.0018208,111040.0,111030.0,0.28562108]
[1762087322455,0.0018208,111040.0,111030.0,0.26760794]
[1762087322652,0.0018208,111040.0,111030.0,0.29467311]
[1762087323149,0.0058208,111040.0,111030.0,0.29967311]
[1762087323582,0.0068208,111040.0,111030.0,0.30167311]
[1762087328827,0.0068208,111040.0,111030.0,0.38742479]
[1762087330338,0.0068208,111040.0,111030.0,0.30167311]
[1762087330973,0.0068208,111040.0,111030.0,0.27460794]
[1762087338836,0.0068208,111040.0,111030.0,0.36035962]
[1762087346025,0.18693607,111040.0,111030.0,0.09447645]
[1762087346481,0.18693607,111040.0,111030.0,0.03491]
[1762087346701,0.2037467,111040.0,111030.0,0.03491]
[1762087347245,0.1997467,111040.0,111030.0,0.02991]
[1762087347652,0.2137467,111040.0,111030.0,0.03191]
[1762087347854,0.2137467,111040.0,111030.0,0.05672771]
[1762087348127,0.2197467,111040.0,111030.0,0.05772771]
[1762087349309,0.2197467,111040.0,111030.0,0.03291]
[1762087351250,0.2197467,111040.0,111030.0,0.05679]
[1762087352363,0.20293607,111040.0,111030.0,0.05679]
[1762087352605,0.21973652,111040.0,111030.0,0.05679]
[1762087353131,0.24680303,111040.0,111030.0,0.05679]
[1762087353347,0.24680303,111040.0,111030.0,0.08170757]
[1762087354169,0.23000258,111040.0,111030.0,0.08170757]
[1762087355479,0.20293607,111040.0,111030.0,0.05782757]
[1762087355687,0.23000333,111040.0,111030.0,0.05782757]
[1762087356524,0.23000333,111040.0,111030.0,0.03291]
[1762087356731,0.24679675,111040.0,111030.0,0.03291]
[1762087359168,0.24679435,111040.0,111030.0,0.03291]
[1762087359895,0.23000333,111040.0,111030.0,0.03291]
[1762087361657,0.62297626,111040.0,111030.0,0.005]
[1762087361899,0.62816394,111040.0,111030.0,0.005]
[1762087362138,0.64750546,111040.0,111030.0,0.005]
[1762087363604,0.63250546,111040.0,111030.0,0.001]
[1762087363807,0.18016394,111010.0,111000.0,0.20142831]
[1762087364040,0.18016394,111010.0,111000.0,0.21750322]
[1762087364204,0.18016394,111010.0,111000.0,0.26980096]
[1762087364885,0.24340399,111020.0,111000.0,0.29368096]
[1762087365096,0.18016394,111010.0,111000.0,0.29368096]
[1762087365324,0.18416394,111010.0,111000.0,0.29468096]
[1762087365567,0.18416394,111010.0,111000.0,0.27080096]
[1762087365781,0.004,111010.0,111000.0,0.27080096]
[1762087365989,0.004,111010.0,111000.0,0.29468096]
[1762087366443,0.004,111010.0,111000.0,0.29668096]
[1762087366784,0.004,111010.0,111000.0,0.29468096]
[1762087367255,0.01,111010.0,111000.0,0.29668096]
[1762087382141,0.01,111010.0,111000.0,0.38243264]
[1762087386032,0.006,111010.0,111000.0,0.38143264]
[1762087386453,0.007,111010.0,111000.0,0.38743264]
[1762087387080,0.001,111010.0,111000.0,0.38543264]
[1762087387284,0.005,111010.0,111000.0,0.39243264]
[1762087387716,0.005,111010.0,111000.0,0.41950169]
[1762087389454,0.005,111010.0,111000.0,0.39243264]
[1762087391881,0.005,111010.0,111000.0,0.41950306]
[1762087396230,0.004,111010.0,111000.0,0.41350306]
[1762087396444,0.20849536,111030.0,111010.0,0.18014947]
[1762087396622,0.20594162,111030.0,111010.0,0.27390335]
[1762087397325,0.18014772,111020.0,111010.0,0.28972335]
[1762087397535,0.18014772,111020.0,111010.0,0.23771335]
[1762087397744,0.18014772,111020.0,111010.0,0.25853335]
[1762087397917,0.18014772,111020.0,111010.0,0.27004335]
[1762087398207,0.18014772,111020.0,111010.0,0.28972335]
[1762087398543,0.009,111020.0,111010.0,0.29372335]
[1762087398771,0.18914772,111020.0,111010.0,0.29472335]
[1762087399025,0.009,111020.0,111010.0,0.29372335]
[1762087399363,0.012,111020.0,111010.0,0.29472335]
[1762087399567,0.19214772,111020.0,111010.0,0.29472335]
[1762087400791,0.012,111020.0,111010.0,0.29472335]
[1762087400999,0.19214772,111020.0,111010.0,0.29472335]
[1762087401894,0.19214772,111020.0,111010.0,0.27005782]
[1762087402307,0.19214772,111020.0,111010.0,0.29473782]
[1762087403786,0.012,111020.0,111010.0,0.29473782]
[1762087403941,0.19214772,111020.0,111010.0,0.29473782]
[1762087407065,0.19214772,111020.0,111010.0,0.27005782]
[1762087408646,0.012,111020.0,111010.0,0.27005782]
[1762087409051,0.012,111020.0,111010.0,0.29403782]
[1762087409861,0.20895435,111020.0,111010.0,0.24272782]
[1762087410283,0.20895435,111020.0,111010.0,0.005]
[1762087410284,0.24513663,111020.0,111010.0,0.005]
[1762087411486,0.26449717,111020.0,111010.0,0.005]
[1762087412392,0.24513663,111020.0,111010.0,0.005]
[1762087412792,0.26449629,111020.0,111010.0,0.005]
[1762087413347,0.24513663,111020.0,111010.0,0.005]
[1762087417184,0.58513663,111020.0,111010.0,0.005]
[1762087417385,0.60968182,111020.0,111010.0,0.005]
[1762087417731,0.63675762,111020.0,111010.0,0.005]
[1762087420451,0.61995099,111020.0,111010.0,0.005]
[1762087420739,0.63675476,111020.0,111010.0,0.005]
[1762087424493,0.63674027,111020.0,111010.0,0.005]
[1762087430555,0.63155397,111020.0,111010.0,0.005]
[1762087431656,0.63673656,111020.0,111010.0,0.005]
[1762087434047,0.63673656,111020.0,111010.0,0.18516394]
[1762087434373,0.63673656,111020.0,111010.0,0.005]
[1762087438520,0.63673656,111020.0,111010.0,0.18516394]
[1762087440669,0.63673656,111020.0,111010.0,0.21237394]
[1762087440868,0.60966076,111020.0,111010.0,0.23584394]
[1762087441872,0.60966076,111020.0,111010.0,0.21237394]
[1762087442205,0.60966076,111020.0,111010.0,0.23584394]
[1762087442206,0.42951304,111020.0,111010.0,0.23584394]
[1762087445199,0.42433045,111020.0,111010.0,0.23584394]
[1762087445341,0.42951775,111020.0,111010.0,0.23584394]
[1762087445899,0.42433045,111020.0,111010.0,0.23584394]
[1762087446679,0.42433045,111020.0,111010.0,0.27860238]
[1762087447641,0.42433045,111020.0,111010.0,0.25513238]
[1762087447842,0.42433045,111020.0,111010.0,0.27860238]
[1762087451834,0.40497156,111020.0,111010.0,0.27860238]
[1762087452038,0.40497156,111020.0,111010.0,0.23584394]
[1762087452483,0.42433145,111020.0,111010.0,0.23584394]
[1762087453293,0.42434711,111020.0,111010.0,0.23584394]
[1762087453815,0.40498722,111020.0,111010.0,0.23584394]
[1762087454115,0.36880494,111020.0,111010.0,0.28130976]
[1762087456100,0.36880494,111020.0,111010.0,0.30838182]
[1762087457225,0.02880494,111020.0,111010.0,0.30838182]
[1762087457429,0.20895266,111020.0,111010.0,0.30838182]
[1762087457638,0.02880494,111020.0,111010.0,0.30838182]
[1762087457840,0.20895266,111020.0,111010.0,0.30838182]
[1762087458049,0.43384625,111030.0,111010.0,0.30838182]
[1762087458261,0.18014772,111020.0,111010.0,0.30838182]
[1762087458906,0.18014772,111020.0,111010.0,0.30438182]
[1762087459112,0.11320361,111030.0,111010.0,0.30438182]
[1762087459316,0.13654951,111030.0,111010.0,0.30938182]
[1762087459499,0.47654951,111030.0,111010.0,0.30938182]
[1762087459804,0.45839044,111030.0,111010.0,0.30438182]
[1762087460019,0.45839044,111030.0,111010.0,0.30838182]
[1762087460167,0.19114772,111020.0,111010.0,0.30738182]
[1762087460568,0.011,111020.0,111010.0,0.30838182]
[1762087461308,0.4582038,111030.0,111010.0,0.30438182]
[1762087461466,0.46339033,111030.0,111010.0,0.30438182]
[1762087461670,0.46239033,111030.0,111010.0,0.30638182]
[1762087461879,0.18014772,111020.0,111010.0,0.30638182]
[1762087462124,0.18114772,111020.0,111010.0,0.30738182]
[1762087462363,0.18014772,111020.0,111010.0,0.30638182]
[1762087462729,0.18014772,111020.0,111010.0,0.30438182]
[1762087462927,0.18014772,111020.0,111010.0,0.30838182]
[1762087463139,0.18414772,111020.0,111010.0,0.30938182]
[1762087463341,0.004,111020.0,111010.0,0.30938182]
[1762087463701,0.18414772,111020.0,111010.0,0.10574788]
[1762087463903,0.18414772,111020.0,111010.0,0.25883976]
[1762087465571,0.18414772,111020.0,111010.0,0.07867582]
[1762087465899,0.18414772,111020.0,111010.0,0.25883976]
[1762087466232,0.18414772,111020.0,111010.0,0.07867582]
[1762087466444,0.18414772,111020.0,111010.0,0.25883976]
[1762087466960,0.18414772,111020.0,111010.0,0.07867582]
[1762087467760,0.18414772,111020.0,111010.0,0.25883976]
[1762087467985,0.18414772,111020.0,111010.0,0.07867582]
[1762087468375,0.18414772,111020.0,111010.0,0.25883976]
[1762087469657,0.18414772,111020.0,111010.0,0.07867582]
[1762087469875,0.20351246,111020.0,111010.0,0.07867582]
[1762087470055,0.22032306,111020.0,111010.0,0.07867582]
[1762087470956,0.20095832,111020.0,111010.0,0.07867582]
[1762087471173,0.22551102,111020.0,111010.0,0.07867582]
[1762087471941,0.22551102,111020.0,111010.0,0.28227976]
[1762087472124,0.20095832,111020.0,111010.0,0.28227976]
[1762087473413,0.20095832,111020.0,111010.0,0.10211582]
[1762087473816,0.22032438,111020.0,111010.0,0.10211582]
[1762087474530,0.22032438,111020.0,111010.0,0.28227976]
[1762087475647,0.22032438,111020.0,111010.0,0.10211582]
[1762087475846,0.22551344,111020.0,111010.0,0.10211582]
[1762087478800,0.22551344,111020.0,111010.0,0.28227976]
[1762087479009,0.22417424,111020.0,111010.0,0.28227976]
[1762087479205,0.21898518,111020.0,111010.0,0.28227976]
[1762087481102,0.21898518,111020.0,111010.0,0.10211582]
[1762087481231,0.2241744,111020.0,111010.0,0.10211582]
[1762087484436,0.22417701,111020.0,111010.0,0.10211582]
[1762087484837,0.22417701,111020.0,111010.0,0.006]
[1762087488709,0.60035929,111020.0,111010.0,0.006]
[1762087489566,0.624556,111020.0,111010.0,0.006]
[1762087490448,0.7096169,111020.0,111010.0,0.006]
[1762087490634,0.70442167,111020.0,111010.0,0.006]
[1762087490838,0.79080251,111020.0,111010.0,0.006]
[1762087491082,0.74085286,111020.0,111010.0,0.001]
[1762087491289,0.74085286,111020.0,111010.0,0.005]
[1762087491491,0.79617481,111020.0,111010.0,0.004]
[1762087491907,0.79617481,111020.0,111010.0,0.005]
[1762087491908,0.79817481,111020.0,111010.0,0.005]
[1762087492115,0.79617481,111020.0,111010.0,0.004]
[1762087492492,0.80417481,111020.0,111010.0,0.005]
[1762087493173,0.79617481,111020.0,111010.0,0.001]
[1762087493358,0.82835733,111020.0,111010.0,0.005]
[1762087493489,0.84235733,111020.0,111010.0,0.005]
[1762087493914,0.82835733,111020.0,111010.0,0.001]
[1762087494328,0.82835733,111020.0,111010.0,0.005]
[1762087494329,0.84435733,111020.0,111010.0,0.005]
[1762087494552,0.84430096,111020.0,111010.0,0.005]
[1762087496608,0.79597901,111020.0,111010.0,0.005]
[1762087498458,0.82008727,111020.0,111010.0,0.005]
[1762087498876,0.73370643,111020.0,111010.0,0.005]
[1762087499087,0.73364761,111020.0,111010.0,0.005]
[1762087499944,0.70953935,111020.0,111010.0,0.005]
[1762087503262,0.73363629,111020.0,111010.0,0.005]
[1762087503506,0.73360973,111020.0,111010.0,0.005]
[1762087504252,0.82228752,111020.0,111010.0,0.005]
[1762087505051,0.79359389,111020.0,111010.0,0.005]
[1762087505374,0.76949695,111020.0,111010.0,0.005]
[1762087506096,0.7935883,111020.0,111010.0,0.005]
[1762087507494,0.76949695,111020.0,111010.0,0.005]
[1762087507832,0.76949695,111020.0,111010.0,0.00478]
[1762087509441,0.75013089,111020.0,111010.0,0.00478]
[1762087509647,0.76940922,111020.0,111010.0,0.00478]
[1762087512417,0.72905338,111020.0,111010.0,0.00478]
[1762087517460,0.69687086,111020.0,111010.0,0.00478]
[1762087517869,0.72556449,111020.0,111010.0,0.00478]
[1762087518793,0.72559236,111020.0,111010.0,0.00478]
[1762087519001,0.87727041,111020.0,111010.0,0.00478]
[1762087519447,1.03162987,111020.0,111010.0,0.00478]
[1762087520502,0.58503985,111010.0,111000.0,0.00014491]
[1762087520714,0.6746405,111010.0,111000.0,0.00014491]
[1762087521289,0.70172363,111010.0,111000.0,0.00014491]
[1762087521672,0.70872363,111010.0,111000.0,0.00414491]
[1762087521884,0.79854264,111010.0,111000.0,0.00414491]
[1762087522287,0.75016769,111010.0,111000.0,0.00414491]
[1762087522470,0.81470814,111010.0,111000.0,0.00414491]
[1762087523089,0.81470814,111010.0,111000.0,0.00514491]
[1762087523090,1.06780814,111010.0,111000.0,0.00514491]
[1762087524392,0.52019641,110990.0,110980.0,4.674e-05]
[1762087524593,0.70171264,110990.0,110980.0,9.505e-05]
[1762087524996,0.71496264,110990.0,110980.0,9.505e-05]
[1762087525809,0.74717698,110990.0,110980.0,9.505e-05]
[1762087526008,0.75017698,110990.0,110980.0,0.00109505]
[1762087526454,0.74717698,110990.0,110980.0,9.505e-05]
[1762087526664,0.75217698,110990.0,110980.0,0.00109505]
[1762087526906,0.75717698,110990.0,110980.0,0.00609505]
[1762087527271,0.75217698,110990.0,110980.0,0.00109505]
[1762087527708,0.75717698,110990.0,110980.0,0.00509505]
[1762087528352,0.70882596,110990.0,110980.0,0.00509505]
[1762087528521,0.75717698,110990.0,110980.0,0.00509505]
[1762087529394,0.70882596,110990.0,110980.0,0.00509505]
[1762087532323,0.69205341,110990.0,110980.0,0.00509505]
[1762087532673,0.68687859,110990.0,110980.0,0.00509505]
[1762087533379,0.68689691,110990.0,110980.0,0.00509505]
[1762087533988,0.71101718,110990.0,110980.0,0.00509505]
[1762087534184,0.68689691,110990.0,110980.0,0.00509505]
[1762087535268,0.7615391,110990.0,110980.0,0.00509505]
[1762087535669,0.73524793,110990.0,110980.0,0.00509505]
[1762087536416,0.75716571,110990.0,110980.0,0.00509505]
[1762087537555,0.72495137,110990.0,110980.0,0.00509505]
[1762087537757,0.96688477,110990.0,110980.0,0.00509505]
[1762087537962,0.97204949,110990.0,110980.0,0.00509505]
[1762087538399,0.96691436,110990.0,110980.0,0.00109505]
[1762087538632,0.97491436,110990.0,110980.0,0.00409505]
[1762087538823,0.96991436,110990.0,110980.0,0.00309505]
[1762087539100,0.97291436,110990.0,110980.0,0.00309505]
[1762087539645,0.75210553,110990.0,110980.0,0.00309505]
[1762087539869,0.76210552,110990.0,110980.0,0.00309505]
[1762087540429,0.76010552,110990.0,110980.0,0.00309505]
[1762087540636,0.73581435,110990.0,110980.0,0.00309505]
[1762087541251,0.72781435,110990.0,110980.0,9.505e-05]
[1762087541654,0.73381435,110990.0,110980.0,9.505e-05]
[1762087541854,0.73081435,110990.0,110980.0,9.505e-05]
[1762087542090,0.73381435,110990.0,110980.0,9.505e-05]
[1762087542469,0.73081435,110990.0,110980.0,9.505e-05]
[1762087542674,0.73281435,110990.0,110980.0,9.505e-05]
[1762087546479,0.82779435,110990.0,110980.0,9.505e-05]
[1762087546711,0.73281435,110990.0,110980.0,9.505e-05]
[1762087549707,0.72281436,110990.0,110980.0,9.505e-05]
[1762087551333,0.69412073,110990.0,110980.0,9.505e-05]
[1762087552751,0.64590484,110990.0,110980.0,9.505e-05]
[1762087552976,0.69418123,110990.0,110980.0,9.505e-05]
[1762087553166,0.72287478,110990.0,110980.0,9.505e-05]
[1762087553375,0.67459847,110990.0,110980.0,9.505e-05]
[1762087554736,0.77543008,110990.0,110980.0,9.505e-05]
[1762087555511,0.76743008,110990.0,110980.0,9.505e-05]
[1762087556030,0.75639493,110980.0,110970.0,0.0004]
[1762087556293,0.96446068,110980.0,110970.0,0.0004]
[1762087556552,0.96446068,110980.0,110970.0,0.00061847]
[1762087556706,0.99155379,110980.0,110970.0,0.00061847]
[1762087557651,0.99655379,110980.0,110970.0,0.00061847]
[1762087558080,0.99855379,110980.0,110970.0,0.00061847]
[1762087561263,1.24565379,110980.0,110970.0,0.00061847]
[1762087562375,1.22635714,110980.0,110970.0,0.00061847]
[1762087562597,1.24567891,110980.0,110970.0,0.00061847]
[1762087564081,1.19738659,110980.0,110970.0,0.00061847]
[1762087565245,1.20738658,110980.0,110970.0,0.00061847]
[1762087565465,1.27292703,110980.0,110970.0,0.00061847]
[1762087567172,1.02582703,110980.0,110970.0,0.00061847]
[1762087568451,1.22382703,110980.0,110970.0,0.00061847]
[1762087568663,1.22182703,110980.0,110970.0,0.00061847]
[1762087568839,1.22882703,110980.0,110970.0,0.00061847]
[1762087569097,4.22882703,110980.0,110970.0,1e-08]
[1762087569747,4.2551182,110980.0,110970.0,1e-08]
[1762087569951,4.2521182,110980.0,110970.0,1e-08]
[1762087570157,4.22779643,110980.0,110970.0,1e-08]
[1762087570368,4.25212633,110980.0,110970.0,1e-08]
[1762087570831,4.25512633,110980.0,110970.0,1e-08]
[1762087571074,0.55641117,110970.0,110960.0,0.0004]
[1762087571314,0.73578963,110970.0,110960.0,0.0004]
[1762087571560,0.76448326,110970.0,110960.0,0.0004]
[1762087571786,0.79157984,110970.0,110960.0,0.0004]
[1762087572735,0.79657984,110970.0,110960.0,0.0004]
[1762087573180,0.79857984,110970.0,110960.0,0.0004]
[1762087576716,0.79857984,110970.0,110960.0,0.00061849]
[1762087579237,0.76988621,110970.0,110960.0,0.00061849]
[1762087583076,0.96988621,110970.0,110960.0,0.00061849]
[1762087583289,0.64388492,110970.0,110960.0,0.00061849]
[1762087583620,0.65297062,110970.0,110960.0,0.00061849]
[1762087583811,0.68519185,110970.0,110960.0,0.00061849]
[1762087584232,0.65297062,110970.0,110960.0,0.00061849]
[1762087584436,0.74278963,110970.0,110960.0,0.00061849]
[1762087584638,0.77501651,110970.0,110960.0,0.00061849]
[1762087586034,0.72670286,110970.0,110960.0,0.00061849]
[1762087596210,0.77501651,110970.0,110960.0,0.00061849]
[1762087597643,0.8011878,110970.0,110960.0,0.00061849]
[1762087602169,0.77509966,110970.0,110960.0,0.00061849]
[1762087602830,0.68529478,110970.0,110960.0,0.00061849]
[1762087605284,0.63698113,110970.0,110960.0,0.00061849]
[1762087607854,0.63698199,110970.0,110960.0,0.00061849]
[1762087608679,0.66118459,110970.0,110960.0,0.00061849]
[1762087608829,0.65418459,110970.0,110960.0,0.00061849]
[1762087609029,0.719801,110970.0,110960.0,0.00061849]
[1762087609252,0.727801,110970.0,110960.0,0.00061849]
[1762087615556,0.75201625,110970.0,110960.0,0.00061849]
[1762087617512,0.7084711,110970.0,110960.0,0.00061849]
[1762087617721,0.7520651,110970.0,110960.0,0.00061849]
[1762087618183,0.75207628,110970.0,110960.0,0.00061849]
[1762087619158,0.70848228,110970.0,110960.0,0.00061849]